Cogmind - Beta 15 @@@ ROGUE MODE // 2025.06.30 @ 00:31:37 Player: Zaros426 Result: Destroyed by 8S-1ER(R) with Subdweller Machine Gun Performance ------------- Evolutions (0) 0 Regions Visited (3) 600 Robots Destroyed (44) 220 Value Destroyed (945) 945 Prototype IDs (1) 20 Alien Tech Used (0) 0 Bonus (96) 96 TOTAL SCORE: 1881 Bonus ------- Follower Combat Kills 96 Cogmind --------- Core Integrity 0/250 Matter 192/300 Energy 198/200 System Corruption 0% Temperature Cool (0) Movement Rolling (120) Ox1 Location -10/Subcaves Parts ------- > --- POWER (1) -------- Subdweller Power Source > --- PROPULSION (2) --- Subdweller Monowheel Subdweller Monowheel > --- UTILITY (2) ------ Large Storage Unit Seismic Detector > --- WEAPON (2) ------- Subdweller Machine Gun Subdweller Machine Gun > --- INVENTORY (15) --- Subdweller Power Source Subdweller Power Source Subdweller Power Source Structural Scanner Experimental Sensor Array Targeting Computer Light Armor Plating Subdweller Laser Subdweller Laser Powered Cannon Makeshift Shrapnel Gun Grenade Launcher Rocket Launcher Mining Laser Peak State ------------ > --- POWER ------------ Ion Engine > --- PROPULSION ------- Light Treads Light Treads > --- UTILITY ---------- Large Storage Unit Experimental Sensor Array > --- WEAPON ----------- Subdweller Laser Makeshift Shrapnel Gun > --- INVENTORY -------- Structural Scanner Seismic Detector Seismic Detector Targeting Computer Targeting Computer Light Armor Plating EM Pulse Gun EM Pulse Gun EM Pulse Gun EM Pulse Gun Beam Cannon Grenade Launcher Rocket Launcher Mining Laser [Rating: 20] Favorites ----------- Power Ion Engine Engine Ion Engine Propulsion Light Treads Treads Light Treads Wheel Subdweller Monowheel Utility Seismic Detector Device Seismic Detector Storage Large Storage Unit Protection Light Armor Plating Weapon Small Laser Energy Gun Small Laser Energy Cannon Beam Cannon Ballistic Gun Assault Rifle Special Weapon Mining Laser Build | -11 -10 -10 -10 ------- Run | Yrd Mat Min Sub Slots Evolved . | . . . . Power . | . . . . Propulsion . | . . . . Utility . | . . . . Weapon . | . . . . Parts Attached 31 | 6 9 7 9 Power 5 | . 1 2 2 Engine 5 | . 1 2 2 Core . | . . . . Reactor . | . . . . Propulsion 6 | 2 1 1 2 Treads 4 | 2 1 1 . Leg . | . . . . Wheel 2 | . . . 2 Hover . | . . . . Flight . | . . . . Utility 6 | 1 2 2 1 Device 3 | 1 . 2 . Storage 1 | . 1 . . Processor . | . . . . Hackware . | . . . . Protection 2 | . 1 . 1 Artifact . | . . . . Weapon 14 | 3 5 2 4 Energy Gun 8 | 3 3 . 2 Energy Cannon 1 | . 1 . . Ballistic Gun 4 | . . 2 2 Ballistic Cannon . | . . . . Launcher . | . . . . Special Weapon 1 | . 1 . . Impact Weapon . | . . . . Slashing Weapon . | . . . . Piercing Weapon . | . . . . Special Melee Weapon . | . . . . Unidentified Prototypes 1 | . . 1 . Parts Lost 5 | . 3 . 2 Power 1 | . 1 . . Propulsion 2 | . . . 2 Utility . | . . . . Weapon 2 | . 2 . . Highest Loss Streak 2 | . 2 . 1 To Critical Strikes . | . . . . Average Backups 8 | 1 4 9 14 Power . | . . . . Propulsion . | . . . . Utility 3 | . 1 3 6 Weapon 4 | . 2 6 7 Tool/Special . | . . . . Unused Backups 19 | 2 . 1 16 Power 4 | . . 1 3 Propulsion . | . . . . Utility 7 | 1 . . 6 Weapon 8 | 1 . . 7 Tool/Special . | . . . . Average Slot Usage (%) 90 | . 81 96 96 Engine 9 | . 6 11 12 Treads 24 | . 28 28 15 Wheel 3 | . . . 12 Device 9 | . 11 10 5 Storage 9 | . 2 14 13 Protection 5 | . 4 3 8 Energy Gun 16 | . 22 8 16 Energy Cannon 4 | . 4 9 . Ballistic Gun 5 | . . 9 10 Peak Build Rating 20 | 5 7 16 20 Average Rating 8 | 3 5 8 13 On Entrance 6 | . 5 7 12 Naked Turns . | . . . . Heaviest Build 36 | 3 28 33 36 Greatest Support 40 | 20 20 40 40 Greatest Overweight (x) 2 | . 2 1 1 Average Overweight (x) . | . . . . Largest Inventory Capacity 15 | 5 15 15 15 Average Capacity 11 | 5 6 15 14 Most Carried 15 | 5 8 15 15 Average Carried 8 | 1 4 9 14 Final Capacity 15 | 5 15 15 15 Final Carried 15 | 4 8 15 15 Class Distribution -------------------- 62% | Mutant 37% | Scavenger-Mutant Dominant Class ---------------- Mutant | -10/Materials Mutant | -10/Mines Scavenger-Mutant | -10/Subcaves Resources | -11 -10 -10 -10 ----------- Run | Yrd Mat Min Sub Matter Collected 697 | 260 188 132 117 Remotely . | . . . . Salvage Created 1405 | 127 760 249 269 Parts 104 | 11 47 20 26 Haulers Intercepted 1 | . 1 . . Recyclers Shooed 3 | . 3 . . Parts Field Recycled . | . . . . Retrieved Matter . | . . . . Parts Self-Destructed 3 | . . . 3 Prevented . | . . . . Kills | -11 -10 -10 -10 ------- Run | Yrd Mat Min Sub Combat Hostiles Destroyed 25 | . 14 4 7 Guns 19 | . 10 2 7 Cannons 2 | . 1 1 . AOE 3 | . 2 1 . Classes Destroyed 10 | 2 7 . 1 Worker 3 | . 2 1 . Builder 3 | . 2 1 . Tunneler 6 | 2 2 2 . Hauler 1 | . 1 . . Recycler 2 | 1 1 . . Operator 1 | . 1 . . Watcher 3 | . 3 . . Swarmer 6 | . 6 . . Grunt 12 | . 8 4 . Subdweller 7 | . . . 7 Best Kill Streak 6 | 3 6 4 3 Combat Bots Only 4 | . 4 2 3 Max Kills in Single Turn 3 | 1 3 1 1 Gunslinging . | . . . . Exploded 2 | . 2 1 . Melee . | . . . . Uniques/NPCs Destroyed . | . . . . Combat | -11 -10 -10 -10 -------- Run | Yrd Mat Min Sub Hostile Shots Fired 130 | . 77 24 29 Missed 34 | . 21 5 8 Hits 96 | . 56 19 21 Projectile 96 | . 56 19 21 Damage Taken 1418 | . 695 253 470 Core 273 | . 104 64 105 Absorbed by Shields . | . . . . Core Remaining (%) 100 | 100 . . . Volleys Fired 141 | 7 80 23 31 Largest 2 | 2 2 2 2 Hottest 120 | 80 100 100 120 Shots Fired 273 | 14 151 46 62 Gun 239 | 14 132 31 62 Cannon 26 | . 11 15 . Launcher . | . . . . Special 8 | . 8 . . Kinetic 34 | . . 2 32 Thermal 172 | 14 113 15 30 Explosive . | . . . . Electromagnetic 67 | . 38 29 . Robot Hit Streak 18 | 5 12 8 18 Robot Miss Streak 6 | 3 6 4 6 Penetration Max . | . . . . Secondary Targets 3 | . 1 . 2 Max Gunslinging Chain 1 | . 1 . 1 Shots Hit Robots 162 | 8 87 23 44 Core Hits 69 | 4 38 12 15 Critical Kills . | . . . . Critical Parts Destroyed 1 | . . . 1 Critical Strikes 1 | . . . 1 Destroy 1 | . . . 1 Melee Attacks . | . . . . Impact . | . . . . Slashing . | . . . . Piercing . | . . . . Sneak Attacks . | . . . . Combat Hostiles . | . . . . Follow-up Attacks . | . . . . Damage Inflicted 2644 | 91 1202 443 908 Guns 2217 | 91 968 250 908 Cannons 192 | . 105 87 . Explosions 235 | . 129 106 . Melee . | . . . . Ramming . | . . . . Kinetic 535 | . . 22 513 Thermal 1504 | 91 825 193 395 Explosive . | . . . . Electromagnetic 605 | . 377 228 . Impact . | . . . . Slashing . | . . . . Piercing . | . . . . Highest Corruption . | . . . . Average Corruption . | . . . . Corruption Purged . | . . . . Corruption Blocked . | . . . . Overload Shots . | . . . . Overflow Damage . | . . . . Projectiles . | . . . . Explosions . | . . . . Melee . | . . . . Knockbacks . | . . . . Impact . | . . . . Kinetic . | . . . . Secondary . | . . . . Self-Inflicted Damage 52 | . 52 . . Shots 2 | . 2 . . Rammed . | . . . . Targets Rammed . | . . . . Kicked . | . . . . Crushed . | . . . . Highest Temperature 381 | 18 310 381 6 Average Temperature 80 | 8 78 104 3 Received Heat Transfer 465 | . 234 147 84 Effects 2 | . 1 1 . Shutdowns 1 | . . 1 . Energy Bleed 1 | . 1 . . Siege Activations . | . . . . Martial Activations . | . . . . Shielding Activations . | . . . . Robots Disrupted 1 | . 1 . . Combat Hostiles 1 | . 1 . . Robots Corrupted 1 | . 1 . . Combat Hostiles 1 | . 1 . . Parts Fried 3 | . 3 . . Impact Corruptions . | . . . . Robots Melted . | . . . . Combat Hostiles . | . . . . Parts Melted 3 | . 1 . 2 Heat Transferred 2632 | 200 1672 285 475 Parts Sabotaged . | . . . . Parts Stolen . | . . . . Parts Stripped . | . . . . Power Chain Reactions 2 | . 2 . . Alert | -11 -10 -10 -10 ------- Run | Yrd Mat Min Sub Maximum Alert Level . | . . . . Low Security (%) 100 | 100 100 100 . Level 1 . | . . . . Level 2 . | . . . . Level 3 . | . . . . Level 4 . | . . . . Level 5 . | . . . . High Security . | . . . . Max Security . | . . . . Peak Influence 189 | 10 189 102 . Initial 31 | . 3 31 . Average 63 | 2 103 17 . Influence Increases 857 | 15 600 242 . Destroy 0b10 Robot/C 400 | . 280 120 . Destroy 0b10 Robot/NC 95 | 15 60 20 . Destroy Leader 98 | . 78 20 . Allied During Kill 6 | . . 6 . Select Force Hacks 60 | . 60 . . Disable Machine 30 | . . 30 . Destroy Structure 33 | . 17 16 . Lose Combat Pursuer 135 | . 105 30 . Influence Decreases 857 | 10 525 322 . Entered New Map 51 | . 2 49 . Time Decay 776 | 10 493 273 . Lost Part 30 | . 30 . . Squads Dispatched 5 | . 5 . . Investigation 3 | . 3 . . Extermination . | . . . . Reinforcement 2 | . 2 . . Assault . | . . . . Garrison . | . . . . Intercept . | . . . . Searches Triggered . | . . . . Construction Impeded . | . . . . Haulers Reinforced . | . . . . Active Scanning Responses . | . . . . Cargo Convoy Interrupts . | . . . . Stealth | -11 -10 -10 -10 --------- Run | Yrd Mat Min Sub Distress Signals 1 | . 1 . . Communications Jammed . | . . . . Distress Signals . | . . . . Times Spotted 49 | . 32 8 9 Peak Tracking Total 5 | . 5 2 3 Tactical Retreats 5 | . 4 1 . Traps | -11 -10 -10 -10 ------- Run | Yrd Mat Min Sub Traps Triggered 2 | . 2 . . Indirectly . | . . . . Trap Hack Attempts . | . . . . Triggered . | . . . . Disarmed . | . . . . Reprogrammed . | . . . . Reused . | . . . . Traps Extracted . | . . . . Installed . | . . . . Triggered . | . . . . Machines | -11 -10 -10 -10 ---------- Run | Yrd Mat Min Sub Machines Disabled 2 | . . 2 . Max in Single Turn 2 | . . 2 . Machines Repaired . | . . . . Machines Dismantled . | . . . . Machines Sabotaged . | . . . . Overloaded Fab Kills . | . . . . Hacking | -11 -10 -10 -10 --------- Run | Yrd Mat Min Sub Machines Accessed 6 | . 5 . 1 Terminals 3 | . 3 . . Fabricators . | . . . . Repair Stations . | . . . . Recycling Units 2 | . 2 . . Scanalyzers . | . . . . Garrison Access . | . . . . Total Hacks 11 | . 10 . 1 Successful 4 | . 3 . 1 Failed 7 | . 7 . . Catastrophic 1 | . 1 . . Database Lockouts . | . . . . Manual 10 | . 10 . . Terminals 8 | . 8 . . Fabricators . | . . . . Repair Stations . | . . . . Recycling Units 2 | . 2 . . Scanalyzers . | . . . . Garrison Access . | . . . . Terminal Hacks 1 | . . . 1 Open Door 1 | . . . 1 Fabricator Hacks . | . . . . Repair Station Hacks . | . . . . Recycling Unit Hacks . | . . . . Scanalyzer . | . . . . Garrison Access Hacks . | . . . . Unauthorized Hacks 3 | . 3 . . Terminals 1 | . 1 . . Skim 1 | . 1 . . Fabricators . | . . . . Repair Stations . | . . . . Recycling Units 2 | . 2 . . Tunnel 2 | . 2 . . Scanalyzers . | . . . . Garrison Access . | . . . . Data Cores Recovered . | . . . . Used . | . . . . Hacking Detections 3 | . 3 . . Full Trace Events 2 | . 2 . . Feedback Events . | . . . . Feedback Blocked . | . . . . Robot Schematics Acquired . | . . . . Robots Built . | . . . . Authchips . | . . . . Time . | . . . . Total Robot Build Rating . | . . . . Part Schematics Acquired . | . . . . Parts Built . | . . . . Authchips . | . . . . Time . | . . . . Total Part Build Rating . | . . . . Parts Repaired . | . . . . Time . | . . . . Parts Recycled . | . . . . Recycled Matter . | . . . . Retrieved Matter . | . . . . Retrieved Components . | . . . . Parts Scanalyzed . | . . . . Part Schematics Acquired . | . . . . Parts Damaged . | . . . . Bothacking | -11 -10 -10 -10 ------------ Run | Yrd Mat Min Sub Used RIF Installer . | . . . . Robots Hacked . | . . . . Non-combat . | . . . . Combat . | . . . . Robot Hacks Applied . | . . . . Relay Couplers Released . | . . . . Fabnet Peak Effective % . | . . . . Robots Rewired . | . . . . Allies Hacked . | . . . . Hacks Repelled . | . . . . Allies | -11 -10 -10 -10 -------- Run | Yrd Mat Min Sub Total Allies 3 | . . 3 . Largest Group 3 | . . 3 3 Highest-Rated Group 40 | . . 40 40 Highest-Rated Ally 16 | . . 16 16 Total Orders . | . . . . Ally Attacks 26 | . . 6 20 Total Damage 346 | . . 91 255 Kills 3 | . . 2 1 Allies Corrupted . | . . . . Allies Melted . | . . . . Intel | -11 -10 -10 -10 ------- Run | Yrd Mat Min Sub Active Infowar (turns) 2374 | 17 1169 808 380 Sensors 25 | . . 2 23 Seismic 2349 | 17 1169 806 357 Robot Analysis Total . | . . . . Derelict Logs Recovered 3 | . . 2 1 Drone Launches . | . . . . Drone Recoveries . | . . . . Exploration | -11 -10 -10 -10 ------------- Run | Yrd Mat Min Sub Turns Passed 3510 | 74 1386 1116 934 Spaces Moved 2005 | 58 913 582 452 Core 660 | 54 597 . 9 Treads 1192 | 4 316 582 290 Legs . | . . . . Wheels 153 | . . . 153 Hover . | . . . . Flight . | . . . . Fastest Speed 50 | 50 50 160 100 Average Speed 137 | 57 108 162 174 Slowest Speed 240 | 160 240 240 240 Overloaded Moves . | . . . . Propulsion Burnouts . | . . . . Robots Hopped . | . . . . Potential Cave-ins . | . . . . Cave-ins Triggered . | . . . . Exploration Rate (%) 53 | 3 96 91 23 Regions Visited 3 Branch Regions 2 Pre-discovered Areas 3 | . 2 . 1 Known Exits Taken . | . . . . Unknown Exits Taken 3 | 1 1 1 . Scrap Searched 2 | . . 2 . Spaces Dug 7 | . 7 . . Terrain Destroyed 35 | . 16 19 . Melee . | . . . . Projectile 8 | . 8 . . AOE 27 | . 8 19 . Terrain Rammed . | . . . . Walls Destroyed . | . . . . Machines Disabled . | . . . . Actions | -11 -10 -10 -10 --------- Run | Yrd Mat Min Sub Total 2466 | 83 1137 704 542 Wait 196 | 5 105 73 13 Move 2002 | 57 912 581 452 Hop . | . . . . Pick Up 46 | 6 10 12 18 Fast Attach 14 | 5 1 2 6 Attach 10 | . 6 1 3 Detach 3 | . 2 . 1 Swap 28 | 1 17 6 4 Drop 26 | 2 4 6 14 Fire 141 | 7 80 23 31 Melee . | . . . . Ram . | . . . . Kick . | . . . . Crush . | . . . . Escape Stasis . | . . . . Rewire . | . . . . Trap . | . . . . Miscellaneous . | . . . . Route ------- -11/Scrapyard -10/Materials (discovered 5 exits: [*Mat x3] / [*Min x2]) -10/Mines (discovered 4 exits: [*Mat x2] / [*Exi] / *Sub) -10/Subcaves (discovered 1 exit: [*Mat]) History --------- Turn | Location | Event 13 | -11/Scrapyard | Discovered new exit (range 15) 75 | -11/Scrapyard | Entered Materials 88 | -10/Materials | Discovered new exit (range 16) 289 | -10/Materials | Discovered new exit (range 16) 299 | -10/Materials | Discovered new exit (range 14) 318 | -10/Materials | Build established: Mutant 957 | -10/Materials | Discovered new exit (range 4) 1191 | -10/Materials | Discovered new exit (range 9) 1461 | -10/Materials | Entered Mines 1519 | -10/Mines | Core integrity fell below 50% 1613 | -10/Mines | Learned Materials emergency access door positions 1624 | -10/Mines | Learned Materials stockpile data 1636 | -10/Mines | Discovered new exit (range 6) 1813 | -10/Mines | Deemed a non-threat by the Exiles lab entrance 1813 | -10/Mines | Discovered new exit (range 5) 1958 | -10/Mines | Assisted by bots powering up and referring to "LRC-V3" 2047 | -10/Mines | Joined a pair of Derelicts in attacking an 0b10 outpost 2131 | -10/Mines | Found a damaged Exp. Sensor Array with a note attached 2134 | -10/Mines | Found Prototype Device 2135 | -10/Mines | Identified Exp. Sensor Array 2247 | -10/Mines | Discovered new exit (range 9) 2273 | -10/Mines | Received a Rocket Launcher from a helpful Derelict 2328 | -10/Mines | A weapon hastily lodged in a ceiling crevice suddenly fell to the ground 2372 | -10/Mines | Build established: Scavenger-Mutant 2413 | -10/Mines | Discovered new exit (range 5) 2577 | -10/Mines | Entered Subcaves 2577 | -10/Subcaves | Accompanied by 3 allies 2578 | -10/Subcaves | Approached by a straggling Scientist 2624 | -10/Subcaves | Ambushed by Subdwellers from Twisted Machinery 2655 | -10/Subcaves | Discovered new exit (range 6) 2806 | -10/Subcaves | Core integrity fell below 20% 3303 | -10/Subcaves | Learned location of Zion (-7) 3317 | -10/Subcaves | A Subdweller sparked back to life 3317 | -10/Subcaves | A Subdweller sparked back to life 3317 | -10/Subcaves | A Subdweller sparked back to life 3403 | -10/Subcaves | Found Prototype Energy Cannon 3511 | -10/Subcaves | Destroyed by 8S-1ER(R) with Subdweller Machine Gun Last Messages --------------- 03383_ Acquired Structural Scanner. 03386_ Acquired Lgt. Armor Plating. 03388_ Acquired Sub. Power Source. 03389_ Acquired 49 matter. XZ-8OQ(c): "I think it's somewhere south of here" 03396_ Acquired Sub. Power Source. 03403_ Acquired Prototype Energy Cannon. 03406_ Acquired Sub. Machine Gun. 03412_ Dropped Sub. Machine Gun. 03412_ Acquired Sub. Machine Gun. 03414_ Dropped Beam Cannon. 03415_ Acquired Sub. Machine Gun. 03421_ Acquired Grenade Launcher. 03425_ KC-ENU(O) puts together Sub. Power Source. 03428_ Acquired Sub. Power Source. 03429_ Dropped Mak. Light Armor Plating. 03431_ Acquired Sub. Power Source. XZ-8OQ(c): "I think it's somewhere south of here" 03496_ GD-8ED(R) destroyed. 03508_ Subatomizers dissect the Sub. Laser. Map ----- +----------------------------------------------------+ | | | | | | | | | | | | | | | | | | | | | | | | | | | ?????????????????????????????????????????????????? | | ?????????????????????????????????????????????????? | | ?????????????????????????????????????????????????? | | ??????????????????????????######?????????????????? | | ????????????????????? $ """"""##????????????????? | | ???????????????????? $ " #????????????????? | | ???????????????????? """"" #????????????????? | | ????????????????????? $ """"" #????????????????? | | ????????????????????????$" "" ""#????????????????? | | ???????????????????????????#" "#????????????????? | | ??????????????????????????##" "#????????????????? | | ?????????????????????######" ""#????????????????? | | ?????????????????????# @# "##????????????????? | | ?????????????????????## [&R& "#?????????????????? | | ?????????????????????#< ##& ##?????????????????? | | ####???????????????###< "#####??????????????????? | | #?????????????### < c ### #???????????????? | | ##????????????## #???????????????? | | #?????????????# #???????????????? | | ##????????????# ##### #?????????????? | | #????????????# #????# ???????????? | | #???????###### ##???? ???????????? | | ##?????### #????? # ##???????????? | | #????## ### #?????? #?##????????????? | | ####### #?####???????????????????????? | | [ !## #????????????????????????????? | | & = = ####????????????????????????????? | | &&! ##???????????????????????????????? | | ! [## ## ##????????????????????????????????? | | ! ###### ##?????????????????????????????????? | | [##????## ##??????????????????????????????????? | | #??????# #???????????????????????????????????? | | ##??????# ??????????????????????????????????? | | #??????# ##?????????????????????????????????? | | ???????# #??????????????????????????????????? | | ??????? ####??????????????????????????????????? | | ?????? ##?????????????????????????????????????? | +----------------------------------------------------+ Best States ------------- Heat Dissipation 25 Energy Generation 15 Energy Capacity 250 Matter Stores 300 Matter Capacity 300 Sight Range 16 Robot Scan Range 20 Terrain Scan Density 10 Armor Coverage 150 Evasion (%) 50 Recoil Reduction 2 Item Schematics ----------------- None Robot Schematics ------------------ None Fabricated ------------ Nothing Repaired ---------- Nothing Alien Tech Used ----------------- None Achievements -------------- None Challenges ------------ None Game ------ Seed LayeredTowerCycler Manual? 0 Play Time 00:23:47 Cumulative 315.7 hours Start 2025.06.30 @ 00:09:06 End 2025.06.30 @ 00:31:37 Sessions 1 Manual Loads 0 Difficulty Rogue Special Mode None Game No. 161 Rogue 161 Adventurer 0 Explorer 0 Win Type - Total 1 Types 0/0/0/0/1/0/0/0/0/0 Lore% 79 Gallery% 77 Achievement% 66 Wizard Run 0 Options --------- Layout 0 ASCII 0 Keyboard 0 Movement Mouse Keybinds 0 Fullscreen 1 Font 24/Smallcaps Map View 183x50 Zoom Use 0% Tactical HUD 1 Map Filters NONE Filters NONE Steam 0 RUN: ce66ab34-75ba-4734-bcf3-918800d70251